{"text_format":"2","workbook":"xlsx","n_sheets":3,"sheets":["Munka1","Munka2","Munka3"],"not_rendered":{"charts":0,"images":0,"macros":0,"external_links":0,"defined_names":2,"comments":0,"pivot_tables":0},"unopened":[],"bounds":{"document_bytes":16777216,"sheet_cells":100000,"run_cost":"one","rows_first":2000,"rows_last":500,"rows_between":2000,"halvings":0,"cell_chars":16384,"cell_head_chars":4096},"cells_cut":0,"cells_raw":0,"read":"whole","date_system":"1900"}

{"sheet":"Munka1","index":0,"n_rows":35,"n_cols":4,"rows_kept":35,"cut":false,"hidden":false,"merged":[[1,1,1,3],[34,0,34,2],[1,0,2,0]]}
["2. melléklet"]
["Tüzjelző típusa","optikai füstérzékelő költsége"]
[null,"mennyiség (db)","egység ár (Ft)","anyag összesen (Ft)"]
["Siemens CS1115",10,0,{"$f":"C4*B4","v":0}]
["MMG 6201",1,0,{"$f":"C5*B5","v":0}]
["Siemens BC10",8,0,0]
["Promatt CX-32",1,0,0]
["Hekatron Securiton BMZ 349",1,0,0]
["Siemens FC 330A",7,0,0]
["Siemens CS1140",1,0,0]
["CC62P CO érzékelő",1,0,0]
["CC62 gáz érzékelő",2,0,0]
["Aritech FP286422",1,0,0]
["Bentel J506F",1,0,0]
["Fire Class 100",1,0,0]
["Securiton SecuriPro",1,0,0]
["Siemens FC 330",1,0,0]
["Securiton SFP 511-1",1,0,0]
["Promatt AM-2000",1,0,0]
["GLOBAL",1,0,0]
["Menvier DF600",1,0,0]
["Edvards System Technology 6632",1,0,0]
["Promatt AM6000",1,0,0]
["Siemens FC722",5,0,0]
["Siemens FC724",4,0,0]
["Siemens FC 721",2,0,0]
["Promatt AM-1000",3,0,0]
["Siemens Cerberus",15,0,0]
["Cofem Compact Lyon",1,0,0]
["GLOBAL  ANE-JUNIOR V4",1,0,0]
["Schrack Seconet",1,0,0]
["AN-1000",1,0,0]
["Cooper AM 6000/2",1,0,0]
[]
["Összesen",null,null,{"$f":"SUM(D4:D33)","v":0}]

{"sheet":"Munka2","index":1,"n_rows":0,"n_cols":0,"rows_kept":0,"cut":false,"hidden":false,"merged":[]}

{"sheet":"Munka3","index":2,"n_rows":0,"n_cols":0,"rows_kept":0,"cut":false,"hidden":false,"merged":[]}